{"text_format":"1","workbook":"xlsx","n_sheets":30,"sheets":["Riskk","Login","Main","UTFMain","UTFList","UTF1","UTF2A","UTF2B","UTF2C","UTF2D","InPortfolio","UTF2E","UTF2F","UTF2G","UTF2H","UTF3A","UTF3B","UTF3C","UTF3D","UTF4A","UTF5","UTF6","UTF7","InPort","InPos","InTran","InPricing","InIndex","InTWRR","InFund"],"not_rendered":{"charts":0,"images":80,"macros":1,"external_links":0,"defined_names":79,"comments":0,"pivot_tables":13},"unopened":[],"bounds":{"document_bytes":16777216,"sheet_cells":100000,"rows_first":2000,"rows_last":500,"rows_between":2000,"halvings":0,"cell_chars":16384,"cell_head_chars":4096},"cells_cut":0,"cells_raw":0,"read":"whole","date_system":"1900"}

{"sheet":"Riskk","index":0,"n_rows":5,"n_cols":11,"rows_kept":5,"cut":false,"hidden":true,"merged":[]}
["linda","UPSW",null,null,null,null,null,{"$f":"COUNT(H3:H20)","v":0},false]
[null,"Userid",null,null,null,null,null,"Main/sub","Caption","On Action","NewGroup"]
[3,"UserLevel"]
["2006-05-09T11:19:39","LoginTime"]
[null,"LogoutTime"]

{"sheet":"Login","index":1,"n_rows":18,"n_cols":10,"rows_kept":18,"cut":false,"hidden":false,"merged":[]}
[]
[null,"Riskk",null,null,null,null,null,"Box 389, Lot 7.16, Wisma Central, Jln Ampang, 50450 Kuala Lumpur"]
[null,"Sdn Bhd (CN 388306K)"]
[]
[]
[]
[]
[]
[null,"SC REPORT"]
[]
[]
[]
[]
[]
[]
[]
[]
[null,null,null,null,null,null,null,null,null,"`"]

{"sheet":"Main","index":2,"n_rows":24,"n_cols":11,"rows_kept":24,"cut":false,"hidden":true,"merged":[]}
["Riskk ",null,null,"Box 389, Lot 7.16, Wisma Central, Jln Ampang, 50450 Kuala Lumpur"]
["Sdn Bhd (CN 388306K)"]
[]
[]
[null,"Report Detail",null,null,null,null,null,null,null,"Sheet","Print"]
[null,"Company  :","BIMB Investment Management Berhad",null,null,null,null,null,null,"UTFMain","YES"]
[null,"Fund  :","IF",null,null,null,null,null,null,"UTFList","YES"]
[null,"Fund Name  :",{"$f":"VLOOKUP(FundCode,InFund!$A:$D,2,0)","v":"BIMB I Flexi Fund"},null,null,null,null,null,null,"UTF1","YES"]
[null,"Fund Prefix :",{"$f":"VLOOKUP(FundCode,InFund!$A:$G,7,0)","v":"IF"},null,null,null,null,null,null,"UTF2A","YES"]
[null,"Inception Date  :",{"$f":"VLOOKUP(FundCode,InFund!$A:$D,3,0)","v":"2015-04-01"},null,null,null,null,null,null,"UTF2B","YES"]
[null,"Start Of Year  :",{"$f":"EOMONTH(EOM,-MONTH(EOM))+1","v":"2016-01-01"},null,null,null,null,null,null,"UTF2C","YES"]
[null,"End of Last Month  :",{"$f":"EOMONTH(C13,-1)","v":"2016-02-29"},null,null,null,null,null,null,"UTF2D","YES"]
[null,"Report As At  :","2016-03-31",null,null,null,null,null,null,"UTF2E","YES"]
[null,"Index Bench Mark  :",{"$f":"VLOOKUP(FundCode,InFund!$A:$E,5,0)","v":"FBMKLCI"},null,null,null,null,null,null,"UTF2F","YES"]
[null,"Fund Currency :",{"$f":"VLOOKUP(FundCode,InFund!$A:$F,6,0)","v":"MYR"},null,null,null,null,null,null,"UTF2G","YES"]
[null,null,null,null,null,null,null,null,null,"UTF2H","YES"]
[null,null,null,null,null,null,null,null,null,"UTF3A","YES"]
[null,"Current Date :",{"$f":"TEXT(NOW(),\"DD-MMM-YY\")","v":"11-Apr-16"},null,null,null,null,null,null,"UTF3B","YES"]
[null,"Current Time :",{"$f":"TEXT(NOW(),\"HH:MM:SS\")","v":"11:17:36"},null,null,null,null,null,null,"UTF3C","YES"]
[null,"Company ID:","BI",null,null,null,null,null,null,"UTF3D","YES"]
[null,"Current User :",null,null,null,null,null,null,null,"UTF4A","YES"]
[null,null,null,null,null,null,null,null,null,"UTF5","YES"]
[null,null,null,null,null,null,null,null,null,"UTF6","YES"]
[null,null,null,null,null,null,null,null,null,"UTF7","YES"]

{"sheet":"UTFMain","index":3,"n_rows":36,"n_cols":7,"rows_kept":36,"cut":false,"hidden":true,"merged":[[13,6,13,7],[12,6,12,8]]}
[]
[null,null,null,"                                       UTF COMPLIANCE RETURNS"]
[null,null,null,"DECLARATION/VERIFICATION FORM"]
[null,null,null,{"$f":"\"For the Month Ended \" & TEXT(EOM,\"MMM yyyy\")","v":"For the Month Ended Mar 2016"}]
[{"$f":"EDATE(EOM,0)","v":"2016-03-31"}]
[]
[null,null,null,"Management Company ",null,{"$f":"\": \" &CompanyName","v":": BIMB Investment Management Berhad"}]
[null,null,null,"Trustee  ",null,{"$f":"\": \" & VLOOKUP(FundCode,InFund!$A:$H,8,0)","v":": AMANAHRAYA TRUSTEES BERHAD"}]
[null,null,null,"Fund ",null,{"$f":"\": \" &FundName","v":": BIMB I Flexi Fund"}]
[]
[null,null,"2007-06-12","Management company Declaration",null,null,"Trustee Declaration"]
[]
[null,null,null,"1. The attached Compliance Returns are complete, true and accurate ",null,null,"1. The attached Compliance Returns are complete, true and accurate "]
[null,null,null,"    to the best of my knowledge and belief.",null,null,"     to the best of my knowledge and belief."]
[]
[null,null,null,"Signature :",null,null,"Signature :"]
[]
[]
[null,null,null,"Name :",null,null,"Name :"]
[]
[null,null,null,"Designation :",null,null,"Designation :"]
[]
[null,null,null,"IC/Passport no :",null,null,"IC/Passport no :"]
[]
[null,null,null,"Date :",null,null,"Date :"]
[]
[]
[null,null,null,"   Declaration of the Designated Person responsible for all compliance matters"]
[null,null,null,"1. The attached Compliance Returns are complete, true and accurate to the best of my knowledge and belief."]
[]
[]
[null,null,null,"Signature :",null,null,"Name :"]
[]
[null,null,null,"IC/Passport no :",null,null,"Designation :"]
[]
[null,null,null,"Date :"]

{"sheet":"UTFList","index":4,"n_rows":29,"n_cols":8,"rows_kept":29,"cut":false,"hidden":true,"merged":[]}
[]
[null,null,null,"                                       UTF COMPLIANCE RETURNS"]
[null,null,null,"CHCEKLIST"]
[null,null,null,{"$f":"\"For the Month Ended \" & TEXT(EOM,\"MMM yyyy\")","v":"For the Month Ended Mar 2016"}]
[]
[{"$f":"EDATE(EOM,0)","v":"2016-03-31"}]
[]
[null,null,null,"Management Company ",null,{"$f":"\": \" &CompanyName","v":": BIMB Investment Management Berhad"}]
[null,null,null,"Fund ",null,{"$f":"\": \" &FundName","v":": BIMB I Flexi Fund"}]
[]
[null,null,"2007-06-12"]
[]
[null,null,null,"UTF Compliance 1",null,"Manager's Box",null,{"$f":"IF('UTF1'!J14=\"\",\"\",\"Y\")","v":""}]
[null,null,null,"UTF Compliance 2A",null,"Investments in Ordinary Shares of a Single Issuer",null,{"$f":"IF(UTF2A!G14=\"\",\"\",\"Y\")","v":""}]
[null,null,null,"UTF Compliance 2B",null,"Investments in Transferable Securities And Money Market Instruments of a Single Issuer",null,{"$f":"IF(UTF2B!J14=\"\",\"\",\"Y\")","v":""}]
[null,null,null,"UTF Compliance 2C",null,"Placements of Deposits with a Single Institution",null,{"$f":"IF(UTF2C!G14=\"\",\"\",\"Y\")","v":""}]
[null,null,null,"UTF Compliance 2D",null,"Investments in OTC Derivative of a Single Counter-Party",null,{"$f":"IF(UTF2D!G14=\"\",\"\",\"Y\")","v":""}]
[null,null,null,"UTF Compliance 2E",null,"Investment in Structured Product of a Single Counter-Party",null,{"$f":"IF(UTF2E!G14=\"\",\"\",\"Y\")","v":""}]
[null,null,null,"UTF Compliance 2F",null,"Aggregate Investments of a Single Issuer/Institution",null,{"$f":"IF(UTF2F!H14=\"\",\"\",\"Y\")","v":""}]
[null,null,null,"UTF Compliance 2G",null,"Investments in Units/Shares of a Single Collective Investment Scheme",null,{"$f":"IF(UTF2G!G14=\"\",\"\",\"Y\")","v":""}]
[null,null,null,"UTF Compliance 2H",null,"Investments in Transferable Securities And Money Market Instruments of a Group of Companies",null,{"$f":"IF(UTF2H!J14=\"\",\"\",\"Y\")","v":""}]
[null,null,null,"UTF Compliance 3A",null,"Concentration of Investment in Equities/Warrants of a Single Issuer",null,{"$f":"IF(UTF3A!I13=\"\",\"\",\"Y\")","v":""}]
[null,null,null,"UTF Compliance 3B",null,"Concentration of Investment in Debentures of a Single Issuer",null,{"$f":"IF(UTF3B!H13=\"\",\"\",\"Y\")","v":""}]
[null,null,null,"UTF Compliance 3C",null,"Concentration of Investment in Money Market Instruments of a Single Issuer",null,{"$f":"IF(UTF3C!H13=\"\",\"\",\"Y\")","v":""}]
[null,null,null,"UTF Compliance 3D",null,"Concentration of Investment in Collective Investment Scheme of a Single Issuer",null,{"$f":"IF(UTF3D!H13=\"\",\"\",\"Y\")","v":""}]
[null,null,null,"UTF Compliance 4A",null,"Investment in Unlisted Securities",null,{"$f":"IF(UTF4A!H14=\"\",\"\",\"Y\")","v":""}]
[null,null,null,"UTF Compliance 5",null,"Investments in Permitted Investments of a Money Market Fund",null,{"$f":"IF('UTF5'!H14=\"\",\"\",\"Y\")","v":""}]
[null,null,null,"UTF Compliance 6",null,"Holding of Permitted Investments for a Capital Protected Fund",null,{"$f":"IF('UTF6'!G14=\"\",\"\",\"Y\")","v":""}]
[null,null,null,"UTF Compliance 7",null,"Use of Brokers/Dealers",null,{"$f":"IF('UTF7'!F13=\"\",\"\",\"Y\")","v":"Y"}]

{"sheet":"UTF1","index":5,"n_rows":13,"n_cols":10,"rows_kept":13,"cut":false,"hidden":true,"merged":[[3,3,3,9],[1,3,1,9],[10,6,10,9],[11,6,11,8],[9,6,9,9],[11,3,11,5]]}
[null,null,null,null,null,null,null,null,null,"UTF COMPLIANCE 1"]
[null,null,null," UTF COMPLIANCE RETURNS"]
[]
[null,null,null,"MANAGER'S BOX"]
[]
[{"$f":"EDATE(EOM,0)","v":"2016-03-31"}]
[]
[null,null,null,"Management Company ",null,null,{"$f":"\": \" &CompanyName","v":": BIMB Investment Management Berhad"}]
[null,null,null,"Name of Fund (Category/Type)",null,null,{"$f":"\": \" &FundName","v":": BIMB I Flexi Fund"}]
[null,null,null,"Month Ended",null,null,{"$f":"\":  \" & TEXT(EOM, \"dd mmm yyyy\")","v":":  31 Mar 2016"}]
[null,null,"2007-06-12","Approved Fund Size (' 000 units)",null,null,{"$f":"\": \"","v":": "}]
[null,null,null,"Manager's Box ('000 units)",null,null,"Units in circulation ('000 units)",null,null,"Units held by Manager over"]
[null,null,null,"EPF","Matched Sales","Unit held by Manager","Total Manager's box","Others","Total","Units in circulation (%)"]

{"sheet":"UTF2A","index":6,"n_rows":18,"n_cols":12,"rows_kept":18,"cut":false,"hidden":true,"merged":[[1,3,1,6],[10,5,10,6],[7,5,7,6],[8,5,8,6],[9,5,9,6]]}
[null,null,null,null,null,null,"UTF COMPLIANCE 2A"]
[null,null,null,"UTF COMPLIANCE RETURNS"]
[]
[null,null,null,{"$f":"UPPER(\"Investments in Ordinary Shares of a Single Issuer Top 5\")","v":"INVESTMENTS IN ORDINARY SHARES OF A SINGLE ISSUER TOP 5"}]
[]
[{"$f":"EDATE(EOM,0)","v":"2016-03-31"}]
[]
[null,null,null,"Management Company ",":",{"$f":" CompanyName","v":"BIMB Investment Management Berhad"}]
[null,null,null,"Name of Fund (Category/Type)",":",{"$f":" FundName","v":"BIMB I Flexi Fund"}]
[null,null,null," Month Ended",":",{"$f":"TEXT(EOM,\"dd mmm yyyy\")","v":"31 Mar 2016"}]
[null,null,"2007-06-12","Fund NAV (RM)",":",{"$f":"InPortfolio!AM2","v":0}]
[null,null,null,"Name of Issuer",null,"Value of Fund's Investments","Value of holding over NAV",null,null,"qAssetClass","(Multiple Items)"]
[null,null,null,null,null,"(RM)","(%)"]
[null,null,null,{"$f":"IF(J16=\"\",\"\",J16)","v":""},null,{"$f":"IF(K16=\"\",\"\",K16)","v":""},{"$f":"IF(L16=\"\",\"\",L16)","v":""},null,null,null,"Values"]
[null,null,null,{"$f":"IF(J17=\"\",\"\",J17)","v":""},null,{"$f":"IF(K17=\"\",\"\",K17)","v":""},{"$f":"IF(L17=\"\",\"\",L17)","v":""},null,null,"Row Labels","Sum of MarketValueFC","Sum of fPercNAV"]
[null,null,null,{"$f":"IF(J18=\"\",\"\",J18)","v":""},null,"",{"$f":"IF(L18=\"\",\"\",L18)","v":""}]
[null,null,null,{"$f":"IF(J19=\"\",\"\",J19)","v":""},null,"",{"$f":"IF(L19=\"\",\"\",L19)","v":""}]
[null,null,null,{"$f":"IF(J20=\"\",\"\",J20)","v":""},null,"",{"$f":"IF(L20=\"\",\"\",L20)","v":""}]

{"sheet":"UTF2B","index":7,"n_rows":100,"n_cols":19,"rows_kept":100,"cut":false,"hidden":true,"merged":[[1,3,1,9],[3,3,3,9],[4,3,4,9]]}
[null,null,null,null,null,null,null,null,null,"UTF COMPLIANCE 2B"]
[null,null,null,"UTF COMPLIANCE RETURNS"]
[]
[null,null,null,{"$f":"UPPER(\"Investments in Transferable Securities And Money Market Instruments of a Single Issuer\")","v":"INVESTMENTS IN TRANSFERABLE SECURITIES AND MONEY MARKET INSTRUMENTS OF A SINGLE ISSUER"}]
[null,null,null,"TOP 5"]
[{"$f":"EDATE(EOM,0)","v":"2016-03-31"}]
[]
[null,null,null,"Management Company ",":",{"$f":"CompanyName","v":"BIMB Investment Management Berhad"}]
[null,null,null,"Name of Fund (Category/Type)",":",{"$f":"FundName","v":"BIMB I Flexi Fund"}]
[null,null,null,"Month Ended",":",{"$f":"TEXT(EOM, \"dd mmm yyyy\")","v":"31 Mar 2016"}]
[null,null,"2007-06-12","Fund NAV (RM)",":",{"$f":" InPortfolio!AM2","v":0},null,null,null,null,null,null,"qAssetClass","(Multiple Items)"]
[null,null,null,"Name of Issuer/ Institution",null,"Class of Security","Type of Investment","Rating","Value of fund's Investments","Value of holding over NAV"]
[null,null,null,null,null,null,null,null,"(RM)","(%)",null,null,null,null,null,null,null,"Values"]
[null,null,null,{"$f":"IF(M15=\"\",\"\",M15)","v":""},null,{"$f":"IF(N15=\"\",\"\",N15)","v":""},{"$f":"IF(O15=\"\",\"\",O15)","v":""},{"$f":"IF(P15=\"\",\"\",IF(TRIM(P15)=\"N/A\",\"-\",P15))","v":""},{"$f":"IF(R15=\"\",\"\",R15)","v":""},{"$f":"IF(S15=\"\",\"\",S15)","v":""},null,null,"Row Labels","Class","StockTypeDesc","Rating","StockName","Sum of MarketValueFC","Sum of fPercNAV"]
[null,null,null,{"$f":"IF(M16=\"\",\"\",M16)","v":""},null,{"$f":"IF(N16=\"\",\"\",N16)","v":""},{"$f":"IF(O16=\"\",\"\",O16)","v":""},{"$f":"IF(P16=\"\",\"\",IF(TRIM(P16)=\"N/A\",\"-\",P16))","v":""},{"$f":"IF(R16=\"\",\"\",R16)","v":""},{"$f":"IF(S16=\"\",\"\",S16)","v":""}]
[null,null,null,"",null,"","","","",""]
[null,null,null,"",null,"","","","",""]
[null,null,null,"",null,"","","","",""]
[null,null,null,"",null,"","","","",""]
[null,null,null,"",null,"","","","",""]
[null,null,null,"",null,"","","","",""]
[null,null,null,"",null,"","","","",""]
[null,null,null,"",null,"","","","",""]
[null,null,null,"",null,"","","","",""]
[null,null,null,"",null,"","","","",""]
[null,null,null,"",null,"","","","",""]
[null,null,null,"",null,"","","","",""]
[null,null,null,"",null,"","","","",""]
[null,null,null,"",null,"","","","",""]
[null,null,null,"",null,"","","","",""]
[null,null,null,"",null,"","","","",""]
[null,null,null,"",null,"","","","",""]
[null,null,null,"",null,"","","","",""]
[null,null,null,"",null,"","","","",""]
[null,null,null,"",null,"","","","",""]
[null,null,null,"",null,"","","","",""]
[null,null,null,"",null,"","","","",""]
[null,null,null,"",null,"","","","",""]
[null,null,null,"",null,"","","","",""]
[null,null,null,"",null,"","","","",""]
[null,null,null,"",null,"","","","",""]
[null,null,null,"",null,"","","","",""]
[null,null,null,"",null,"","","","",""]
[null,null,null,"",null,"","","","",""]
[null,null,null,"",null,"","","","",""]
[null,null,null,"",null,"","","","",""]
[null,null,null,"",null,"","","","",""]
[null,null,null,"",null,"","","","",""]
[null,null,null,"",null,"","","","",""]
[null,null,null,"",null,"","","","",""]
[null,null,null,"",null,"","","","",""]
[null,null,null,"",null,"","","","",""]
[null,null,null,"",null,"","","","",""]
[null,null,null,"",null,"","","","",""]
[null,null,null,"",null,"","","","",""]
[null,null,null,"",null,"","","","",""]
[null,null,null,"",null,"","","","",""]
[null,null,null,"",null,"","","","",""]
[null,null,null,"",null,"","","","",""]
[null,null,null,"",null,"","","","",""]
[null,null,null,"",null,"","","","",""]
[null,null,null,"",null,"","","","",""]
[null,null,null,"",null,"","","","",""]
[null,null,null,"",null,"","","","",""]
[null,null,null,"",null,"","","","",""]
[null,null,null,"",null,"","","","",""]
[null,null,null,"",null,"","","","",""]
[null,null,null,"",null,"","","","",""]
[null,null,null,"",null,"","","","",""]
[null,null,null,"",null,"","","","",""]
[null,null,null,"",null,"","","","",""]
[null,null,null,"",null,"","","","",""]
[null,null,null,"",null,"","","","",""]
[null,null,null,"",null,"","","","",""]
[null,null,null,"",null,"","","","",""]
[null,null,null,"",null,"","","","",""]
[null,null,null,"",null,"","","","",""]
[null,null,null,"",null,"","","","",""]
[null,null,null,{"$f":"IF(M80=\"\",\"\",M80)","v":""},null,{"$f":"IF(N80=\"\",\"\",N80)","v":""},{"$f":"IF(O80=\"\",\"\",O80)","v":""},{"$f":"IF(P80=\"\",\"\",IF(TRIM(P80)=\"N/A\",\"-\",P80))","v":""},{"$f":"IF(R80=\"\",\"\",R80)","v":""},{"$f":"IF(S80=\"\",\"\",S80)","v":""}]
[null,null,null,"",null,"","","","",""]
[null,null,null,"",null,"","","","",""]
[null,null,null,"",null,"","","","",""]
[null,null,null,"",null,"","","","",""]
[null,null,null,"",null,"","","","",""]
[null,null,null,"",null,"","","","",""]
[null,null,null,"",null,"","","","",""]
[null,null,null,"",null,"","","","",""]
[null,null,null,"",null,"","","","",""]
[null,null,null,"",null,"","","","",""]
[null,null,null,"",null,"","","","",""]
[null,null,null,"",null,"","","","",""]
[null,null,null,"",null,"","","","",""]
[null,null,null,"",null,"","","","",""]
[null,null,null,"",null,"","","","",""]
[null,null,null,"",null,"","","","",""]
[null,null,null,"",null,"","","","",""]
[null,null,null,"",null,"","","","",""]
[null,null,null,"",null,"","","","",""]
[null,null,null,"",null,"","","","",""]
[null,null,null,"",null,"","","","",""]

{"sheet":"UTF2C","index":8,"n_rows":18,"n_cols":13,"rows_kept":18,"cut":false,"hidden":true,"merged":[[1,3,1,6],[4,3,4,6]]}
[null,null,null,null,null,null,"UTF COMPLIANCE 2C"]
[null,null,null,"UTF COMPLIANCE RETURNS"]
[]
[null,null,null,{"$f":"UPPER(\"Placements of Deposits with a Single Institution\")","v":"PLACEMENTS OF DEPOSITS WITH A SINGLE INSTITUTION"}]
[null,null,null,"TOP 5"]
[{"$f":"EDATE(EOM,0)","v":"2016-03-31"}]
[]
[null,null,null,"Management Company ",":",{"$f":"CompanyName","v":"BIMB Investment Management Berhad"}]
[null,null,null,"Name of Fund (Category/Type)",":",{"$f":" FundName","v":"BIMB I Flexi Fund"}]
[null,null,null,"Month Ended",":",{"$f":"TEXT(EOM,\"dd mmm yyyy\")","v":"31 Mar 2016"}]
[null,null,"2007-06-12","Fund NAV (RM)",":",{"$f":" InPortfolio!AM2","v":0},null,null,null,null,"qAssetClass","(Multiple Items)"]
[null,null,null,"Name of Institution",null,"Value of Fund's Investments","Value of holding over NAV"]
[null,null,null,null,null,"(RM)","(%)",null,null,null,null,"Values"]
[null,null,null,{"$f":"IF(K15=\"\",\"\",K15)","v":""},null,{"$f":"IF(L15=\"\",\"\",L15)","v":""},{"$f":"IF(M15=\"\",\"\",M15)","v":""},null,null,null,"Row Labels","Sum of UnitFaceValue","Sum of fPercNAV"]
[null,null,null,{"$f":"IF(K16=\"\",\"\",K16)","v":""},null,{"$f":"IF(L16=\"\",\"\",L16)","v":""},{"$f":"IF(M16=\"\",\"\",M16)","v":""}]
[null,null,null,{"$f":"IF(K17=\"\",\"\",K17)","v":""},null,"",{"$f":"IF(M17=\"\",\"\",M17)","v":""}]
[null,null,null,{"$f":"IF(K18=\"\",\"\",K18)","v":""},null,"",{"$f":"IF(M18=\"\",\"\",M18)","v":""}]
[null,null,null,{"$f":"IF(K19=\"\",\"\",K19)","v":""},null,"",{"$f":"IF(M19=\"\",\"\",M19)","v":""}]

{"sheet":"UTF2D","index":9,"n_rows":18,"n_cols":14,"rows_kept":18,"cut":false,"hidden":true,"merged":[[1,3,1,6],[4,3,4,6]]}
[null,null,null,null,null,null,"UTF COMPLIANCE 2D"]
[null,null,null,"UTF COMPLIANCE RETURNS"]
[]
[null,null,null,{"$f":"UPPER(\"Investments in OTC Derivative of a Single Counter-Party\")","v":"INVESTMENTS IN OTC DERIVATIVE OF A SINGLE COUNTER-PARTY"}]
[null,null,null,"TOP 5"]
[{"$f":"EDATE(EOM,0)","v":"2016-03-31"}]
[]
[null,null,null,"Management Company ",":",{"$f":" CompanyName","v":"BIMB Investment Management Berhad"}]
[null,null,null,"Name of Fund (Category/Type)",":",{"$f":" FundName","v":"BIMB I Flexi Fund"}]
[null,null,null,"Month Ended",":",{"$f":"TEXT(EOM,\"dd mmm yyyy\")","v":"31 Mar 2016"}]
[null,null,"2007-06-12","Fund NAV ",":",{"$f":" InPortfolio!AM2","v":0},null,null,null,null,"qAssetClass","(blank)"]
[null,null,null,"Name of Issuer","Type of Investment","Value of Fund's Investments","Value of holding over NAV"]
[null,null,null,null,null,"(RM)","(%)",null,null,null,null,null,"Values"]
[null,null,null,{"$f":"IF(K15=\"\",\"\",K15)","v":"(blank)"},"(blank)",{"$f":"IF(M15=\"\",\"\",M15)","v":""},{"$f":"IF(N15=\"\",\"\",N15)","v":""},null,null,null,"Row Labels","StockTypeDesc","Sum of MarketValueFC","Sum of fPercNAV"]
[null,null,null,"","",{"$f":"IF(M16=\"\",\"\",M16)","v":""},{"$f":"IF(N16=\"\",\"\",N16)","v":""},null,null,null,"(blank)","(blank)"]
[null,null,null,"","","",{"$f":"IF(N17=\"\",\"\",N17)","v":""}]
[null,null,null,"","","",{"$f":"IF(N18=\"\",\"\",N18)","v":""}]
[null,null,null,"","","",{"$f":"IF(N19=\"\",\"\",N19)","v":""}]

{"sheet":"InPortfolio","index":10,"n_rows":1,"n_cols":122,"rows_kept":1,"cut":false,"hidden":true,"merged":[]}
["Class","qFundCode","qStockCode","UnitFaceValue","MarketValueSC","MarketValueFC","ExchangeRate","MaturityDateCSH","CostFC","CostSC","AccruedInterestFC","AccruedInterestSC","UnrealisedGainsStock","UnrealisedGainsExchg","PriceCurr","FundName","FundCurrency","MaxTenor","qCompanyID","StockName","StockCurrency","qAssetClass","SectorName","CurrencyName","Exchange","IslamicFlag","IssuerName","IssuerGrpName","qStockType","Board","qBondType","BndDesc","StockTypeDesc","qManagerCode","qCountryID","FreezeUnit","FundDesc","RatingUsed","NAV","ExchgName","qCshType","CshTypeDesc","UTFlag","qKLSESector","ValuationMethod","qRptSequence","fPercNAV","PurchaseYTM","PurchaseDate","MarketValueDate","BookValue","ValueYTM","ValGains","PreAcqSC","PreAcqFC","FundGrpName","LastMarketValue","Rating","Term","Term","Term","Term","Term","Term","Term","Term","Term","Term","Term","Term","Term","Term","Term","Term","Term","Term","Term","Term","Term","Term","Term","Term","Term","Term","Term","Term","Term","Term","Term","Term","Term","Term","Term","Term","Term","Term","Term","Term","Term","Term","Term","Term","Term","Term","Term","Term","Term","Term","Term","Term","Term","Term","Term","Term","Term","Term","Term","Term","Term","Term","Term","Term"]

{"sheet":"UTF2E","index":11,"n_rows":19,"n_cols":14,"rows_kept":19,"cut":false,"hidden":true,"merged":[[1,3,1,6],[4,3,4,6]]}
[null,null,null,null,null,null,"UTF COMPLIANCE 2E"]
[null,null,null,"UTF COMPLIANCE RETURNS"]
[]
[null,null,null,{"$f":"UPPER(\"Investment in Structured Product of a Single Counter-Party\")","v":"INVESTMENT IN STRUCTURED PRODUCT OF A SINGLE COUNTER-PARTY"}]
[null,null,null,"TOP 5"]
[{"$f":"EDATE(EOM,0)","v":"2016-03-31"}]
[]
[null,null,null,"Management Company ",":",{"$f":" CompanyName","v":"BIMB Investment Management Berhad"}]
[null,null,null,"Name of Fund (Category/Type)",":",{"$f":"FundName","v":"BIMB I Flexi Fund"}]
[null,null,null,"Month Ended",":",{"$f":"TEXT(EOM,\"dd mmm yyyy\")","v":"31 Mar 2016"}]
[null,null,"2007-06-12","Fund NAV ",":",{"$f":"InPortfolio!AM2","v":0}]
[null,null,null,"Name of Issuer","Rating","Value of Fund's Investments","Value of holding over NAV",null,null,null,"qAssetClass","(blank)"]
[null,null,null,null,null,"(RM)","(%)"]
[null,null,null,{"$f":"IF(K16=\"\",\"\",K16)","v":""},{"$f":"IF(L16=\"\",\"\",L16)","v":""},{"$f":"IF(M16=\"\",\"\",M16)","v":""},{"$f":"IF(N16=\"\",\"\",N16)","v":""},null,null,null,null,null,"Values"]
[null,null,null,{"$f":"IF(K17=\"\",\"\",K17)","v":""},{"$f":"IF(L17=\"\",\"\",L17)","v":""},{"$f":"IF(M17=\"\",\"\",M17)","v":""},{"$f":"IF(N17=\"\",\"\",N17)","v":""},null,null,null,"Row Labels","Rating","Sum of MarketValueFC","Sum of fPercNAV"]
[null,null,null,"","","",""]
[null,null,null,"","","",""]
[null,null,null,"","","",""]
[null,null,null,{"$f":"IF(K20=\"\",\"\",K20)","v":""},null,{"$f":"IF(M20=\"\",\"\",M20)","v":""}]

{"sheet":"UTF2F","index":12,"n_rows":100,"n_cols":16,"rows_kept":100,"cut":false,"hidden":true,"merged":[[1,3,1,7],[4,3,4,7]]}
[null,null,null,null,null,null,null,"UTF COMPLIANCE 2F"]
[null,null,null,"UTF COMPLIANCE RETURNS"]
[]
[null,null,null,{"$f":"UPPER(\"Aggregate Investments of a Single Issuer/Institution\")","v":"AGGREGATE INVESTMENTS OF A SINGLE ISSUER/INSTITUTION"}]
[null,null,null,"TOP 5"]
[{"$f":"EDATE(EOM,0)","v":"2016-03-31"}]
[]
[null,null,null,"Management Company ",":",{"$f":"CompanyName","v":"BIMB Investment Management Berhad"}]
[null,null,null,"Name of Fund (Category/Type)",":",{"$f":"FundName","v":"BIMB I Flexi Fund"}]
[null,null,null,"Month Ended",":",{"$f":"TEXT(EOM,\"dd mmm yyyy\")","v":"31 Mar 2016"}]
[null,null,"2007-06-12","Fund NAV ",":",{"$f":" InPortfolio!AM2","v":0},null,null,null,null,null,"qAssetClass","(Multiple Items)"]
[null,null,null,"Name of Issuer",null,"Class of Investment","Value of Fund's Investments","Value of holding over NAV"]
[null,null,null,null,null,null,"(RM)","(%)",null,null,null,null,null,null,"Values"]
[null,null,null,{"$f":"IF(L15=\"\",\"\",L15)","v":""},null,{"$f":"IF(M15=\"\",\"\",M15)","v":""},{"$f":"IF(O15=\"\",\"\",O15)","v":""},{"$f":"IF(P15=\"\",\"\",P15)","v":""},null,null,null,"Row Labels","Class","StockName","Sum of MarketValueFC","Sum of fPercNAV"]
[null,null,null,{"$f":"IF(L16=\"\",\"\",L16)","v":""},null,{"$f":"IF(M16=\"\",\"\",M16)","v":""},{"$f":"IF(O16=\"\",\"\",O16)","v":""},{"$f":"IF(P16=\"\",\"\",P16)","v":""}]
[null,null,null,"",null,"","",""]
[null,null,null,"",null,"","",""]
[null,null,null,"",null,"","",""]
[null,null,null,"",null,"","",""]
[null,null,null,"",null,"","",""]
[null,null,null,"",null,"","",""]
[null,null,null,"",null,"","",""]
[null,null,null,"",null,"","",""]
[null,null,null,"",null,"","",""]
[null,null,null,"",null,"","",""]
[null,null,null,"",null,"","",""]
[null,null,null,"",null,"","",""]
[null,null,null,"",null,"","",""]
[null,null,null,"",null,"","",""]
[null,null,null,"",null,"","",""]
[null,null,null,"",null,"","",""]
[null,null,null,"",null,"","",""]
[null,null,null,"",null,"","",""]
[null,null,null,"",null,"","",""]
[null,null,null,"",null,"","",""]
[null,null,null,"",null,"","",""]
[null,null,null,"",null,"","",""]
[null,null,null,"",null,"","",""]
[null,null,null,"",null,"","",""]
[null,null,null,"",null,"","",""]
[null,null,null,"",null,"","",""]
[null,null,null,"",null,"","",""]
[null,null,null,"",null,"","",""]
[null,null,null,"",null,"","",""]
[null,null,null,"",null,"","",""]
[null,null,null,"",null,"","",""]
[null,null,null,"",null,"","",""]
[null,null,null,"",null,"","",""]
[null,null,null,"",null,"","",""]
[null,null,null,"",null,"","",""]
[null,null,null,"",null,"","",""]
[null,null,null,"",null,"","",""]
[null,null,null,"",null,"","",""]
[null,null,null,"",null,"","",""]
[null,null,null,"",null,"","",""]
[null,null,null,"",null,"","",""]
[null,null,null,"",null,"","",""]
[null,null,null,"",null,"","",""]
[null,null,null,"",null,"","",""]
[null,null,null,"",null,"","",""]
[null,null,null,"",null,"","",""]
[null,null,null,"",null,"","",""]
[null,null,null,"",null,"","",""]
[null,null,null,"",null,"","",""]
[null,null,null,"",null,"","",""]
[null,null,null,"",null,"","",""]
[null,null,null,"",null,"","",""]
[null,null,null,"",null,"","",""]
[null,null,null,"",null,"","",""]
[null,null,null,"",null,"","",""]
[null,null,null,"",null,"","",""]
[null,null,null,"",null,"","",""]
[null,null,null,"",null,"","",""]
[null,null,null,"",null,"","",""]
[null,null,null,"",null,"","",""]
[null,null,null,"",null,"","",""]
[null,null,null,"",null,"","",""]
[null,null,null,"",null,"","",""]
[null,null,null,{"$f":"IF(L80=\"\",\"\",L80)","v":""},null,{"$f":"IF(M80=\"\",\"\",M80)","v":""},{"$f":"IF(O80=\"\",\"\",O80)","v":""},{"$f":"IF(P80=\"\",\"\",P80)","v":""}]
[null,null,null,"",null,"","",""]
[null,null,null,"",null,"","",""]
[null,null,null,"",null,"","",""]
[null,null,null,"",null,"","",""]
[null,null,null,"",null,"","",""]
[null,null,null,"",null,"","",""]
[null,null,null,"",null,"","",""]
[null,null,null,"",null,"","",""]
[null,null,null,"",null,"","",""]
[null,null,null,"",null,"","",""]
[null,null,null,"",null,"","",""]
[null,null,null,"",null,"","",""]
[null,null,null,"",null,"","",""]
[null,null,null,"",null,"","",""]
[null,null,null,"",null,"","",""]
[null,null,null,"",null,"","",""]
[null,null,null,"",null,"","",""]
[null,null,null,"",null,"","",""]
[null,null,null,"",null,"","",""]
[null,null,null,"",null,"","",""]
[null,null,null,"",null,"","",""]

{"sheet":"UTF2G","index":13,"n_rows":18,"n_cols":14,"rows_kept":18,"cut":false,"hidden":true,"merged":[[1,3,1,6],[4,3,4,6]]}
[null,null,null,null,null,null,"UTF COMPLIANCE 2G"]
[null,null,null,"UTF COMPLIANCE RETURNS"]
[]
[null,null,null,{"$f":"UPPER(\"Investments in Units/Shares of a Single Collective Investment Scheme\")","v":"INVESTMENTS IN UNITS/SHARES OF A SINGLE COLLECTIVE INVESTMENT SCHEME"}]
[null,null,null,"TOP 5"]
[{"$f":"EDATE(EOM,0)","v":"2016-03-31"}]
[]
[null,null,null,"Management Company ",":",{"$f":"CompanyName","v":"BIMB Investment Management Berhad"}]
[null,null,null,"Name of Fund (Category/Type)",":",{"$f":"FundName","v":"BIMB I Flexi Fund"}]
[null,null,null,"Month Ended",":",{"$f":"TEXT(EOM,\"dd mmm yyyy\")","v":"31 Mar 2016"}]
[null,null,"2007-06-12","Fund NAV ",":",{"$f":"InPortfolio!AM2","v":0},null,null,null,null,"qAssetClass","(Multiple Items)"]
[null,null,null,"Name of Collective Investment Scheme","Type of Investment","Value of Fund's Investments","Value of holding over NAV"]
[null,null,null,null,null,"(RM)","(%)",null,null,null,null,null,"Values"]
[null,null,null,{"$f":"IF(K15=\"\",\"\",K15)","v":""},"",{"$f":"IF(M15=\"\",\"\",M15)","v":""},{"$f":"IF(N15=\"\",\"\",N15)","v":""},null,null,null,"Row Labels","StockTypeDesc","Sum of MarketValueFC","Sum of fPercNAV"]
[null,null,null,"","",{"$f":"IF(M16=\"\",\"\",M16)","v":""},{"$f":"IF(N16=\"\",\"\",N16)","v":""}]
[null,null,null,"","","",{"$f":"IF(N17=\"\",\"\",N17)","v":""}]
[null,null,null,"","","",{"$f":"IF(N18=\"\",\"\",N18)","v":""}]
[null,null,null,"","","",{"$f":"IF(N19=\"\",\"\",N19)","v":""}]

{"sheet":"UTF2H","index":14,"n_rows":80,"n_cols":20,"rows_kept":80,"cut":false,"hidden":true,"merged":[[10,6,10,9],[1,3,1,9],[4,3,4,9],[7,6,7,9],[8,6,8,9],[9,6,9,9]]}
[null,null,null,null,null,null,null,null,null,"UTF COMPLIANCE 2H"]
[null,null,null,"UTF COMPLIANCE RETURNS"]
[]
[null,null,null,{"$f":"UPPER(\"Investments in Transferable Securities And Money Market Instruments of a Group of Companies\")","v":"INVESTMENTS IN TRANSFERABLE SECURITIES AND MONEY MARKET INSTRUMENTS OF A GROUP OF COMPANIES"}]
[null,null,null,"TOP 5"]
[{"$f":"EDATE(EOM,0)","v":"2016-03-31"},null,null,null,null,null,null,null,null,null,null,null,null,"qAssetClass","(Multiple Items)"]
[]
[null,null,null,"Management Company ",":",{"$f":"CompanyName","v":"BIMB Investment Management Berhad"},null,null,null,null,null,null,null,null,null,null,null,"Values"]
[null,null,null,"Name of Fund (Category/Type)",":",{"$f":"FundName","v":"BIMB I Flexi Fund"},null,null,null,null,null,null,null,"Row Labels","IssuerName","Class","StockTypeDesc","Sum of MarketValueFC","Sum of fPercNAV","Count of IssuerGrpName"]
[null,null,null,"Month Ended",":",{"$f":"TEXT(EOM,\"dd mmm yyyy\")","v":"31 Mar 2016"}]
[null,null,"2007-06-12","Fund NAV (RM)",":",{"$f":"InPortfolio!AM2","v":0}]
[null,null,null,"Name of Group",null,"Name of Issuer within the Group","Class of Security","Type of Investment","Value of Fund's Investments","Value of holding over NAV"]
[null,null,null,null,null,null,null,null,"(RM)","(%)"]
[null,null,null,{"$f":"IF(N10=\"\",\"\",N10)","v":""},null,{"$f":"IF(O10=\"\",\"\",O10)","v":""},{"$f":"IF(P10=\"\",\"\",P10)","v":""},{"$f":"IF(Q10=\"\",\"\",Q10)","v":""},{"$f":"IF(R10=\"\",\"\",R10)","v":""},{"$f":"IF(S10=\"\",\"\",S10)","v":""}]
[null,null,null,{"$f":"IF(N11=\"\",\"\",N11)","v":""},null,{"$f":"IF(O11=\"\",\"\",O11)","v":""},{"$f":"IF(P11=\"\",\"\",P11)","v":""},{"$f":"IF(Q11=\"\",\"\",Q11)","v":""},{"$f":"IF(R11=\"\",\"\",R11)","v":""},{"$f":"IF(S11=\"\",\"\",S11)","v":""}]
[null,null,null,"",null,"","","","",""]
[null,null,null,"",null,"","","","",""]
[null,null,null,"",null,"","","","",""]
[null,null,null,"",null,"","","","",""]
[null,null,null,"",null,"","","","",""]
[null,null,null,"",null,"","","","",""]
[null,null,null,"",null,"","","","",""]
[null,null,null,"",null,"","","","",""]
[null,null,null,"",null,"","","","",""]
[null,null,null,"",null,"","","","",""]
[null,null,null,"",null,"","","","",""]
[null,null,null,"",null,"","","","",""]
[null,null,null,"",null,"","","","",""]
[null,null,null,"",null,"","","","",""]
[null,null,null,"",null,"","","","",""]
[null,null,null,"",null,"","","","",""]
[null,null,null,"",null,"","","","",""]
[null,null,null,"",null,"","","","",""]
[null,null,null,"",null,"","","","",""]
[null,null,null,"",null,"","","","",""]
[null,null,null,"",null,"","","","",""]
[null,null,null,"",null,"","","","",""]
[null,null,null,"",null,"","","","",""]
[null,null,null,"",null,"","","","",""]
[null,null,null,"",null,"","","","",""]
[null,null,null,"",null,"","","","",""]
[null,null,null,"",null,"","","","",""]
[null,null,null,"",null,"","","","",""]
[null,null,null,"",null,"","","","",""]
[null,null,null,"",null,"","","","",""]
[null,null,null,"",null,"","","","",""]
[null,null,null,"",null,"","","","",""]
[null,null,null,"",null,"","","","",""]
[null,null,null,"",null,"","","","",""]
[null,null,null,"",null,"","","","",""]
[null,null,null,"",null,"","","","",""]
[null,null,null,"",null,"","","","",""]
[null,null,null,"",null,"","","","",""]
[null,null,null,"",null,"","","","",""]
[null,null,null,"",null,"","","","",""]
[null,null,null,"",null,"","","","",""]
[null,null,null,"",null,"","","","",""]
[null,null,null,"",null,"","","","",""]
[null,null,null,"",null,"","","","",""]
[null,null,null,"",null,"","","","",""]
[null,null,null,"",null,"","","","",""]
[null,null,null,"",null,"","","","",""]
[null,null,null,"",null,"","","","",""]
[null,null,null,"",null,"","","","",""]
[null,null,null,"",null,"","","","",""]
[null,null,null,"",null,"","","","",""]
[null,null,null,"",null,"","","","",""]
[null,null,null,"",null,"","","","",""]
[null,null,null,"",null,"","","","",""]
[null,null,null,"",null,"","","","",""]
[null,null,null,"",null,"","","","",""]
[null,null,null,"",null,"","","","",""]
[null,null,null,"",null,"","","","",""]
[null,null,null,"",null,"","","","",""]
[null,null,null,"",null,"","","","",""]
[null,null,null,"",null,"","","","",""]
[null,null,null,"",null,"","","","",""]
[null,null,null,"",null,"","","","",""]
[null,null,null,{"$f":"IF(N75=\"\",\"\",N75)","v":""},null,{"$f":"IF(O75=\"\",\"\",O75)","v":""},{"$f":"IF(P75=\"\",\"\",P75)","v":""},{"$f":"IF(Q75=\"\",\"\",Q75)","v":""},{"$f":"IF(R75=\"\",\"\",R75)","v":""},{"$f":"IF(S75=\"\",\"\",S75)","v":""}]
[null,null,null,"",null,"","","","",""]

{"sheet":"UTF3A","index":15,"n_rows":17,"n_cols":19,"rows_kept":17,"cut":false,"hidden":true,"merged":[[1,3,1,8],[4,3,4,8],[7,5,7,8],[8,5,8,8],[9,5,9,8]]}
[null,null,null,null,null,null,null,null,"UTF COMPLIANCE 3A"]
[null,null,null,"UTF COMPLIANCE RETURNS"]
[null,null,null,null,null,null,null,null,null,null,null,null,null,"qAssetClass","(Multiple Items)"]
[null,null,null,{"$f":"UPPER(\"Concentration of Investment in Equities/Warrants of a Single Issuer\")","v":"CONCENTRATION OF INVESTMENT IN EQUITIES/WARRANTS OF A SINGLE ISSUER"}]
[null,null,null,"TOP 5",null,null,null,null,null,null,null,null,null,null,null,null,"Values"]
[{"$f":"EDATE(EOM,0)","v":"2016-03-31"},null,null,null,null,null,null,null,null,null,null,null,null,"Row Labels","Class","StockTypeDesc","Sum of IssuedSize","Sum of UnitFaceValue","Sum of PercHolding"]
[]
[null,null,null,"Management Company ",null,{"$f":"\": \" & CompanyName","v":": BIMB Investment Management Berhad"}]
[null,null,null,"Name of Fund (Category/Type)",null,{"$f":"\": \" & FundName","v":": BIMB I Flexi Fund"}]
[null,null,null,"Month Ended",null,{"$f":"\": \" & TEXT(EOM,\"dd mmm yyyy\")","v":": 31 Mar 2016"}]
[null,null,null,"Name of Issuer","Class of Investment","Type of Investment","Securities in Issue","Securities held by fund","Holding of security over security in issue"]
[null,null,null,null,null,null,"(units)","(units)","(%)"]
[null,null,null,{"$f":"IF(N7=\"\",\"\",N7)","v":""},{"$f":"IF(O7=\"\",\"\",O7)","v":""},"","","",""]
[null,null,null,{"$f":"IF(N8=\"\",\"\",N8)","v":""},{"$f":"IF(O8=\"\",\"\",O8)","v":""},{"$f":"IF(P8=\"\",\"\",P8)","v":""},{"$f":"IF(Q8=\"\",\"\",Q8)","v":""},{"$f":"IF(R8=\"\",\"\",R8)","v":""},{"$f":"IF(S8=\"\",\"\",S8)","v":""}]
[null,null,null,"","","","","",""]
[null,null,null,"","","","","",""]
[null,null,null,"","","","","",""]

{"sheet":"UTF3B","index":16,"n_rows":17,"n_cols":16,"rows_kept":17,"cut":false,"hidden":true,"merged":[[1,3,1,7],[4,3,4,7],[7,4,7,7],[8,4,8,7],[9,4,9,7]]}
[null,null,null,null,null,null,null,"UTF COMPLIANCE 3B"]
[null,null,null,"UTF COMPLIANCE RETURNS"]
[]
[null,null,null,{"$f":"UPPER(\"Concentration of Investment in Debentures of a Single Issuer\")","v":"CONCENTRATION OF INVESTMENT IN DEBENTURES OF A SINGLE ISSUER"}]
[null,null,null,"TOP 5"]
[{"$f":"EDATE(EOM,0)","v":"2016-03-31"}]
[]
[null,null,null,"Management Company ",{"$f":"\": \" & CompanyName","v":": BIMB Investment Management Berhad"}]
[null,null,null,"Name of Fund (Category/Type)",{"$f":"\": \" & FundName","v":": BIMB I Flexi Fund"},null,null,null,null,null,null,"qAssetClass","(Multiple Items)"]
[null,null,null,"Month Ended",{"$f":"\": \" & TEXT(EOM,\"dd mmm yyyy\")","v":": 31 Mar 2016"},null,null,null,null,null,null,"qBondType","(Multiple Items)"]
[null,null,null,"Name of Issuer","Type of Investment","Securities in Issue","Securities held by fund","Holding of security over security in issue"]
[null,null,null,null,null,"(units)","(units)","(%)",null,null,null,null,null,null,"Values"]
[null,null,null,{"$f":"IF(L14=\"\",\"\",L14)","v":""},{"$f":"IF(M14=\"\",\"\",M14)","v":""},"","","",null,null,null,"Row Labels","StockTypeDesc","IssuedSize","Sum of UnitFaceValue","Sum of PercHolding"]
[null,null,null,{"$f":"IF(L15=\"\",\"\",L15)","v":""},"","","",""]
[null,null,null,{"$f":"IF(L16=\"\",\"\",L16)","v":""},"","","",""]
[null,null,null,{"$f":"IF(L17=\"\",\"\",L17)","v":""},"","","",""]
[null,null,null,{"$f":"IF(L18=\"\",\"\",L18)","v":""},"","","",""]

{"sheet":"UTF3C","index":17,"n_rows":17,"n_cols":15,"rows_kept":17,"cut":false,"hidden":true,"merged":[[1,3,1,7],[4,3,4,7],[7,4,7,7],[8,4,8,7],[9,4,9,7]]}
[null,null,null,null,null,null,null,"UTF COMPLIANCE 3C"]
[null,null,null,"UTF COMPLIANCE RETURNS"]
[]
[null,null,null,{"$f":"UPPER(\"Concentration of Investment in Money Market Instruments of a Single Issuer\")","v":"CONCENTRATION OF INVESTMENT IN MONEY MARKET INSTRUMENTS OF A SINGLE ISSUER"}]
[null,null,null,"TOP 5"]
[{"$f":"EDATE(EOM,0)","v":"2016-03-31"}]
[]
[null,null,null,"Management Company ",{"$f":"\": \" & CompanyName","v":": BIMB Investment Management Berhad"}]
[null,null,null,"Name of Fund (Category/Type)",{"$f":"\": \" & FundName","v":": BIMB I Flexi Fund"},null,null,null,null,null,"qAssetClass","(Multiple Items)"]
[null,null,null,"Month Ended",{"$f":"\": \" & TEXT(EOM,\"dd mmm yyyy\")","v":": 31 Mar 2016"},null,null,null,null,null,"qBondType","(Multiple Items)"]
[null,null,null,"Name of Institution","Type of Investment","Instruments in Issue","Instruments held by fund","Holding of security over security in issue"]
[null,null,null,null,null,"(RM)","(RM)","(%)",null,null,null,null,null,"Values"]
[null,null,null,{"$f":"IF(K14=\"\",\"\",K14)","v":""},{"$f":"IF(L14=\"\",\"\",L14)","v":""},"","","",null,null,"Row Labels","StockTypeDesc","IssuedSize","Sum of UnitFaceValue","Sum of PercHolding"]
[null,null,null,{"$f":"IF(K15=\"\",\"\",K15)","v":""},"","","",""]
[null,null,null,{"$f":"IF(K16=\"\",\"\",K16)","v":""},"","","",""]
[null,null,null,{"$f":"IF(K17=\"\",\"\",K17)","v":""},"","","",""]
[null,null,null,{"$f":"IF(K18=\"\",\"\",K18)","v":""},"","","",""]

{"sheet":"UTF3D","index":18,"n_rows":17,"n_cols":15,"rows_kept":17,"cut":false,"hidden":true,"merged":[[1,3,1,7],[4,3,4,7],[7,4,7,7],[8,4,8,7],[9,4,9,7]]}
[null,null,null,null,null,null,null,"UTF COMPLIANCE 3D"]
[null,null,null,"UTF COMPLIANCE RETURNS"]
[]
[null,null,null,{"$f":"UPPER(\"Concentration of Investment in Collective Investment Scheme of a Single Issuer\")","v":"CONCENTRATION OF INVESTMENT IN COLLECTIVE INVESTMENT SCHEME OF A SINGLE ISSUER"}]
[null,null,null,"TOP 5"]
[{"$f":"EDATE(EOM,0)","v":"2016-03-31"}]
[]
[null,null,null,"Management Company ",{"$f":"\": \" & CompanyName","v":": BIMB Investment Management Berhad"},null,null,null,null,null,"qAssetClass","(Multiple Items)"]
[null,null,null,"Name of Fund (Category/Type)",{"$f":"\": \" & FundName","v":": BIMB I Flexi Fund"}]
[null,null,null,"Month Ended",{"$f":"\": \" & TEXT(EOM,\"dd mmm yyyy\")","v":": 31 Mar 2016"},null,null,null,null,null,null,null,null,"Values"]
[null,null,null,"Name of Collective Investment Scheme","Type of Investment","Unit/Shares in Issue","Unit/Shares held by fund","Holding of security over security in issue",null,null,"Row Labels","StockTypeDesc","IssuedSize","Sum of UnitFaceValue","Sum of PercHolding"]
[null,null,null,null,null,"(units)","(units)","(%)"]
[null,null,null,{"$f":"IF(K12=\"\",\"\",K12)","v":""},{"$f":"IF(L12=\"\",\"\",L12)","v":""},"","",""]
[null,null,null,{"$f":"IF(K13=\"\",\"\",K13)","v":""},"","","",""]
[null,null,null,{"$f":"IF(K14=\"\",\"\",K14)","v":""},"","","",""]
[null,null,null,{"$f":"IF(K15=\"\",\"\",K15)","v":""},"","","",""]
[null,null,null,{"$f":"IF(K16=\"\",\"\",K16)","v":""},"","","",""]

{"sheet":"UTF4A","index":19,"n_rows":13,"n_cols":8,"rows_kept":13,"cut":false,"hidden":true,"merged":[[1,3,1,7],[4,3,4,7]]}
[null,null,null,null,null,null,null,"UTF COMPLIANCE 4A"]
[null,null,null,"UTF COMPLIANCE RETURNS"]
[]
[null,null,null,{"$f":"UPPER(\"Investment in Unlisted Securities\")","v":"INVESTMENT IN UNLISTED SECURITIES"}]
[]
[{"$f":"EDATE(EOM,0)","v":"2016-03-31"}]
[]
[null,null,null,"Management Company ",null,":",{"$f":"CompanyName","v":"BIMB Investment Management Berhad"}]
[null,null,null,"Name of Fund (Category/Type)",null,":",{"$f":"FundName","v":"BIMB I Flexi Fund"}]
[null,null,null,"Month Ended",null,":",{"$f":"TEXT(EOM,\"dd mmm yyyy\")","v":"31 Mar 2016"}]
[null,null,"2007-06-12","Fund NAV (RM)",null,":",{"$f":"InPortfolio!AM2","v":0}]
[null,null,null,"Name of Issuer","Type of Investment",null,"Value of Fund's Investments","Value of holding over NAV"]
[null,null,null,null,null,null,"(RM '000)","(%)"]

{"sheet":"UTF5","index":20,"n_rows":13,"n_cols":8,"rows_kept":13,"cut":false,"hidden":true,"merged":[[1,3,1,7],[4,3,4,7],[11,6,11,7]]}
[null,null,null,null,null,null,null,"UTF COMPLIANCE 5"]
[null,null,null,"UTF COMPLIANCE RETURNS"]
[]
[null,null,null,{"$f":"UPPER(\"Investments in Permitted Investments of a Money Market Fund\")","v":"INVESTMENTS IN PERMITTED INVESTMENTS OF A MONEY MARKET FUND"}]
[null,null,null,"TOP 10"]
[{"$f":"EDATE(EOM,0)","v":"2016-03-31"}]
[]
[null,null,null,"Management Company ",":",{"$f":"CompanyName","v":"BIMB Investment Management Berhad"}]
[null,null,null,"Name of Fund (Category/Type)",":",{"$f":"FundName","v":"BIMB I Flexi Fund"}]
[null,null,null,"Month Ended",":",{"$f":"TEXT(EOM,\"dd mmm yyyy\")","v":"31 Mar 2016"}]
[null,null,"2007-06-12","Fund NAV (RM)",":",{"$f":"InPortfolio!AM2","v":0}]
[null,null,null,"Name of Issuer","Class of Investment","Type of Investment","Value of Fund's Investments"]
[null,null,null,null,null,null,"Remaining maturity period of not more than 365 days (RM '000)","Remaining maturity period of more than 365 days but fewer than 732 days (RM'000)"]

{"sheet":"UTF6","index":21,"n_rows":13,"n_cols":7,"rows_kept":13,"cut":false,"hidden":true,"merged":[[1,3,1,6],[4,3,4,6]]}
[null,null,null,null,null,null,"UTF COMPLIANCE 6"]
[null,null,null,"UTF COMPLIANCE RETURNS"]
[]
[null,null,null,{"$f":"UPPER(\"Holding of Permitted Investments for a Capital Protected Fund\")","v":"HOLDING OF PERMITTED INVESTMENTS FOR A CAPITAL PROTECTED FUND"}]
[]
[{"$f":"EDATE(EOM,0)","v":"2016-03-31"}]
[]
[null,null,null,"Management Company ",":",{"$f":" CompanyName","v":"BIMB Investment Management Berhad"}]
[null,null,null,"Name of Fund (Category/Type)",":",{"$f":" FundName","v":"BIMB I Flexi Fund"}]
[null,null,null,"Month Ended",":",{"$f":"TEXT(EOM,\"dd mmm yyyy\")","v":"31 Mar 2016"}]
[null,null,"2007-06-12","Fund NAV ",":",{"$f":"InPortfolio!AM2","v":0}]
[null,null,null,"Name of Issuer","Class of Security","Type","Value of Fund's Investments"]
[null,null,null,null,null,null,"(RM '000)"]

{"sheet":"UTF7","index":22,"n_rows":23,"n_cols":11,"rows_kept":23,"cut":false,"hidden":true,"merged":[[1,3,1,5],[4,3,4,5]]}
[null,null,null,null,null,"UTF COMPLIANCE 7"]
[null,null,null,"UTF COMPLIANCE RETURNS"]
[]
[null,null,null,{"$f":"UPPER(\"Use of Brokers/Dealers\")","v":"USE OF BROKERS/DEALERS"}]
[]
[{"$f":"EDATE(EOM,0)","v":"2016-03-31"}]
[]
[null,null,null,"Management Company ",{"$f":"\": \" & CompanyName","v":": BIMB Investment Management Berhad"}]
[null,null,null,"Name of Fund (Category/Type)",{"$f":"\": \" & FundName","v":": BIMB I Flexi Fund"}]
[null,null,null,"Financial Year Ended",{"$f":"\": \" & TEXT(EOM,\"dd mmm yyyy\")","v":": 31 Mar 2016"}]
[null,null,null,"Top Ten Brokers/ Dealer","Transaction Value for the Year","% Fund's Dealings"]
[null,null,null,null,"(RM '000)",null,null,null,"Row Labels","Sum of SCNetProceed","%"]
[null,null,null,{"$f":"IF(I13=\"\",\"\",I13)","v":"RHB Investment Bank Berhad"},{"$f":"IF(J13=\"\",\"\",J13/1000)","v":3125.4170300000005},{"$f":"IF(E13=0,\"\",(E13/E23)*100)","v":17.820602624438862},null,null,"RHB Investment Bank Berhad",3125417.0300000007,{"$f":"IF(J23=0,\"\",(J13/J23)*100)","v":""}]
[null,null,null,{"$f":"IF(I14=\"\",\"\",I14)","v":"BIMB Securities Sdn Bhd"},{"$f":"IF(J14=\"\",\"\",J14/1000)","v":2875.1951200000012},{"$f":"IF(E14=0,\"\",(E14/E23)*100)","v":16.393879347757256},null,null,"BIMB Securities Sdn Bhd",2875195.120000001,{"$f":"IF(J23=0,\"\",(J14/J23)*100)","v":""}]
[null,null,null,"TA Securities Holdings Berhad",2499.1544000000004,{"$f":"IF(E15=0,\"\",(E15/E23)*100)","v":14.249758362492166},null,null,"TA Securities Holdings Berhad",2499154.4000000004,{"$f":"IF(J23=0,\"\",(J15/J23)*100)","v":""}]
[null,null,null,"Hong Leong Investment Bank Berhad",1709.9481500000002,{"$f":"IF(E16=0,\"\",(E16/E23)*100)","v":9.7498369648111805},null,null,"Hong Leong Investment Bank Berhad",1709948.1500000001,{"$f":"IF(J23=0,\"\",(J16/J23)*100)","v":""}]
[null,null,null,"Public Investment Bank Berhad",1357.5567600000002,{"$f":"IF(E17=0,\"\",(E17/E23)*100)","v":7.7405604845253944},null,null,"Public Investment Bank Berhad",1357556.7600000002,{"$f":"IF(J23=0,\"\",(J17/J23)*100)","v":""}]
[null,null,null,"MIDF Amanah Investment Bank Berhad",1357.3909600000002,{"$f":"IF(E18=0,\"\",(E18/E23)*100)","v":7.7396151207909627},null,null,"MIDF Amanah Investment Bank Berhad",1357390.9600000002,{"$f":"IF(J23=0,\"\",(J18/J23)*100)","v":""}]
[null,null,null,"Maybank Investment Bank Berhad",1259.55135,{"$f":"IF(E19=0,\"\",(E19/E23)*100)","v":7.1817501082169208},null,null,"Maybank Investment Bank Berhad",1259551.3499999999,{"$f":"IF(J23=0,\"\",(J19/J23)*100)","v":""}]
[null,null,null,"CIMB Investment Bank Berhad",1191.2980499999999,{"$f":"IF(E20=0,\"\",(E20/E23)*100)","v":6.7925812627695619},null,null,"CIMB Investment Bank Berhad",1191298.0499999998,{"$f":"IF(J23=0,\"\",(J20/J23)*100)","v":""}]
[null,null,null,"Kenanga Investment Bank Berhad",1139.94407,{"$f":"IF(E21=0,\"\",(E21/E23)*100)","v":6.4997694997379325},null,null,"Kenanga Investment Bank Berhad",1139944.07,{"$f":"IF(J23=0,\"\",(J21/J23)*100)","v":""}]
[null,null,null,"HONG LEONG ISLAMIC BANK BERHAD",1022.76712,{"$f":"IF(E22=0,\"\",(E22/E23)*100)","v":5.8316462244597718},null,null,"HONG LEONG ISLAMIC BANK BERHAD",1022767.12,{"$f":"IF(J23=0,\"\",(J22/J23)*100)","v":""}]
[null,null,null,"TOTAL",{"$f":"IF(SUM(E13:E22)=0,\"\",SUM(E13:E22))","v":17538.223010000002},{"$f":"SUM(F13:F22)","v":100},null,null,null,null,{"$f":"IF(J23=0,\"\",(J23/J23)*100)","v":""}]

{"sheet":"InPort","index":23,"n_rows":1,"n_cols":9,"rows_kept":1,"cut":false,"hidden":true,"merged":[]}
["qAssetClass","Class","MarketValueFC","IssuerName","IssuerGrpName","StockTypeDesc","fPercNAV","fPercNAV","fPercNAV"]

{"sheet":"InPos","index":24,"n_rows":2,"n_cols":82,"rows_kept":2,"cut":false,"hidden":true,"merged":[]}
["qAssetClass","qStockCode","StockDesc","UnitFaceValue","CostSC","CostFC","MarketValueSC","MarketValueFC","SG1","MaturityDate","ExchangeCountry","IssuerName","IssuerGrpName","VetoValues","IssuedSize","Coupon","MarketValue","RatingUsed","Description","StockTypeDesc","StockName","StockCountry","List","qBondType","Class","PercHolding",{"$f":"IF(LEN(L1)>5,L1& \" - (\" & B1& \") \",\"\")","v":"IssuerName - (qStockCode) "},{"$f":"L1&I1","v":"IssuerNameSG1"},{"$f":"M1&L1&B1","v":"IssuerGrpNameIssuerNameqStockCode"},{"$f":"IF(AND(COUNTIF($M:$M,M1)>0,A1<>\"CSH\",M1<>\"N/A\"),M1,\"\")","v":"IssuerGrpName"},{"$f":"A1&L1","v":"qAssetClassIssuerName"},{"$f":"B1&M1","v":"qStockCodeIssuerGrpName"},{"$f":"C1&N1","v":"StockDescVetoValues"},"UnitFaceValueIssuedSize","CostSCCoupon","CostFCMarketValue","MarketValueSCRatingUsed","MarketValueFCDescription","SG1StockTypeDesc","MaturityDateStockName","ExchangeCountryStockCountry","IssuerNameList","IssuerGrpNameqBondType","VetoValuesClass","IssuedSizePercHolding","CouponIssuerName - (qStockCode) ","MarketValueIssuerNameSG1","RatingUsedIssuerGrpNameIssuerNameqStockCode","DescriptionIssuerGrpName","StockTypeDescqAssetClassIssuerName","StockNameqStockCodeIssuerGrpName","StockCountryStockDescVetoValues","ListUnitFaceValueIssuedSize","qBondTypeCostSCCoupon","ClassCostFCMarketValue","PercHoldingMarketValueSCRatingUsed","IssuerName - (qStockCode) MarketValueFCDescription","IssuerNameSG1SG1StockTypeDesc","IssuerGrpNameIssuerNameqStockCodeMaturityDateStockName","IssuerGrpNameExchangeCountryStockCountry","qAssetClassIssuerNameIssuerNameList","qStockCodeIssuerGrpNameIssuerGrpNameqBondType","StockDescVetoValuesVetoValuesClass","UnitFaceValueIssuedSizeIssuedSizePercHolding","CostSCCouponCouponIssuerName - (qStockCode) ","CostFCMarketValueMarketValueIssuerNameSG1","MarketValueSCRatingUsedRatingUsedIssuerGrpNameIssuerNameqStockCode","MarketValueFCDescriptionDescriptionIssuerGrpName","SG1StockTypeDescStockTypeDescqAssetClassIssuerName","MaturityDateStockNameStockNameqStockCodeIssuerGrpName","ExchangeCountryStockCountryStockCountryStockDescVetoValues","IssuerNameListListUnitFaceValueIssuedSize","IssuerGrpNameqBondTypeqBondTypeCostSCCoupon","VetoValuesClassClassCostFCMarketValue","IssuedSizePercHoldingPercHoldingMarketValueSCRatingUsed","CouponIssuerName - (qStockCode) IssuerName - (qStockCode) MarketValueFCDescription","MarketValueIssuerNameSG1IssuerNameSG1SG1StockTypeDesc","RatingUsedIssuerGrpNameIssuerNameqStockCodeIssuerGrpNameIssuerNameqStockCodeMaturityDateStockName","DescriptionIssuerGrpNameIssuerGrpNameExchangeCountryStockCountry","StockTypeDescqAssetClassIssuerNameqAssetClassIssuerNameIssuerNameList","StockNameqStockCodeIssuerGrpNameqStockCodeIssuerGrpNameIssuerGrpNameqBondType","StockCountryStockDescVetoValuesStockDescVetoValuesVetoValuesClass"]
["CSH","RDI*MYR*HLISLA","Not Applicable",10052449.869999999,10052449.869999999,10052449.869999999,10052449.869999999,10052449.869999999,"N/A",42306,"Malaysia","N/A","N/A","",0,null,10052,null,"Not Applicable",null,"HONG LEONG ISLAMIC BANK BERHAD","Malaysia","Unlisted",null,"Placements of Deposits",0]

{"sheet":"InTran","index":25,"n_rows":203,"n_cols":45,"rows_kept":203,"cut":false,"hidden":true,"merged":[]}
["CPName","qTrnCode","SCNetProceed","SCNetProceed","SCNetProceed","SCNetProceed","SCNetProceed","SCNetProceed","SCNetProceed","SCNetProceed","SCNetProceed","SCNetProceed","SCNetProceed","SCNetProceed","SCNetProceed","SCNetProceed","SCNetProceed","SCNetProceed","SCNetProceed","SCNetProceed","SCNetProceed","SCNetProceed","SCNetProceed","SCNetProceed","SCNetProceed","SCNetProceed","SCNetProceed","SCNetProceed","SCNetProceed","SCNetProceed","SCNetProceed","SCNetProceed","SCNetProceed","SCNetProceed","SCNetProceed","SCNetProceed","SCNetProceed","SCNetProceed","SCNetProceed","SCNetProceed","SCNetProceed","SCNetProceed","SCNetProceed","SCNetProceed","SCNetProceed"]
["AmInvestment Bank Berhad","SP",50185.15]
["AmInvestment Bank Berhad","SP",76482.17]
["AmInvestment Bank Berhad","SP",40429.89]
["AmInvestment Bank Berhad","SP",39144.42]
["AmInvestment Bank Berhad","SP",45795.93]
["AmInvestment Bank Berhad","SP",18681.32]
["AmInvestment Bank Berhad","SP",54558.93]
["AmInvestment Bank Berhad","SS",69048.649999999994]
["AmInvestment Bank Berhad","SS",166711.19]
["AmInvestment Bank Berhad","SS",86217.08]
["AmInvestment Bank Berhad","SS",81253.05]
["AmInvestment Bank Berhad","SS",75191.289999999994]
["AmInvestment Bank Berhad","SS",156322.29]
["BIMB Securities Sdn Bhd","SP",115902.94]
["BIMB Securities Sdn Bhd","SP",293441.18]
["BIMB Securities Sdn Bhd","SP",77161.8]
["BIMB Securities Sdn Bhd","SP",173243.57]
["BIMB Securities Sdn Bhd","SP",79270.48]
["BIMB Securities Sdn Bhd","SP",36640.69]
["BIMB Securities Sdn Bhd","SP",80547.91]
["BIMB Securities Sdn Bhd","SP",195473.42]
["BIMB Securities Sdn Bhd","SP",82363.81]
["BIMB Securities Sdn Bhd","SP",141773.54999999999]
["BIMB Securities Sdn Bhd","SP",31439.37]
["BIMB Securities Sdn Bhd","SP",156999.82]
["BIMB Securities Sdn Bhd","SS",82572.97]
["BIMB Securities Sdn Bhd","SS",46830.93]
["BIMB Securities Sdn Bhd","SS",35033.449999999997]
["BIMB Securities Sdn Bhd","SS",149990.87]
["BIMB Securities Sdn Bhd","SS",176792.35]
["BIMB Securities Sdn Bhd","SS",118775.35]
["BIMB Securities Sdn Bhd","SS",114025.14]
["BIMB Securities Sdn Bhd","SS",118072.66]
["BIMB Securities Sdn Bhd","SS",71352.81]
["BIMB Securities Sdn Bhd","SS",47747.46]
["BIMB Securities Sdn Bhd","SS",275685.03999999998]
["BIMB Securities Sdn Bhd","SS",92803.199999999997]
["BIMB Securities Sdn Bhd","SS",81254.350000000006]
["CIMB Investment Bank Berhad","SP",37774.410000000003]
["CIMB Investment Bank Berhad","SP",88315.839999999997]
["CIMB Investment Bank Berhad","SP",21929.06]
["CIMB Investment Bank Berhad","SP",50514.28]
["CIMB Investment Bank Berhad","SP",37036.74]
["CIMB Investment Bank Berhad","SP",83220.72]
["CIMB Investment Bank Berhad","SP",35947.61]
["CIMB Investment Bank Berhad","SP",23382.98]
["CIMB Investment Bank Berhad","SP",12834.47]
["CIMB Investment Bank Berhad","SP",132408.57999999999]
["CIMB Investment Bank Berhad","SP",44245.75]
["CIMB Investment Bank Berhad","SP",25865.360000000001]
["CIMB Investment Bank Berhad","SS",117606.91]
["CIMB Investment Bank Berhad","SS",60043.58]
["CIMB Investment Bank Berhad","SS",79175.98]
["CIMB Investment Bank Berhad","SS",82334.210000000006]
["CIMB Investment Bank Berhad","SS",69973.3]
["CIMB Investment Bank Berhad","SS",106514.02]
["CIMB Investment Bank Berhad","SS",82174.25]
["Hong Leong Investment Bank Berhad","SP",67750.460000000006]
["Hong Leong Investment Bank Berhad","SP",47459.01]
["Hong Leong Investment Bank Berhad","SP",42464.56]
["Hong Leong Investment Bank Berhad","SP",41395.79]
["Hong Leong Investment Bank Berhad","SP",68548]
["Hong Leong Investment Bank Berhad","SP",125822.85]
["Hong Leong Investment Bank Berhad","SP",220996.21]
["Hong Leong Investment Bank Berhad","SP",51731.12]
["Hong Leong Investment Bank Berhad","SP",123488.17]
["Hong Leong Investment Bank Berhad","SP",54937.760000000002]
["Hong Leong Investment Bank Berhad","SS",47433.1]
["Hong Leong Investment Bank Berhad","SS",102118.14]
["Hong Leong Investment Bank Berhad","SS",137984.79]
["Hong Leong Investment Bank Berhad","SS",104573.29]
["Hong Leong Investment Bank Berhad","SS",80756.5]
["Hong Leong Investment Bank Berhad","SS",92210.81]
["Hong Leong Investment Bank Berhad","SS",139590.26999999999]
["Hong Leong Investment Bank Berhad","SS",79055.11]
["Hong Leong Investment Bank Berhad","SS",73566.399999999994]
["Hong Leong Investment Bank Berhad","SS",8065.81]
["HONG LEONG ISLAMIC BANK BERHAD","BS",1022767.12]
["Kenanga Investment Bank Berhad","SP",78403.149999999994]
["Kenanga Investment Bank Berhad","SP",18004.09]
["Kenanga Investment Bank Berhad","SP",19701.45]
["Kenanga Investment Bank Berhad","SP",81628.83]
["Kenanga Investment Bank Berhad","SP",89191.6]
["Kenanga Investment Bank Berhad","SP",41759.67]
["Kenanga Investment Bank Berhad","SS",78109.09]
["Kenanga Investment Bank Berhad","SS",53480.89]
["Kenanga Investment Bank Berhad","SS",162046.54999999999]
["Kenanga Investment Bank Berhad","SS",101984.71]
["Kenanga Investment Bank Berhad","SS",233242.89]
["Kenanga Investment Bank Berhad","SS",103683.69]
["Kenanga Investment Bank Berhad","SS",78707.460000000006]
["Macquarie Capital Securities (Malaysia) Sdn Bhd","SP",41123.360000000001]
["Macquarie Capital Securities (Malaysia) Sdn Bhd","SP",75298.789999999994]
["Macquarie Capital Securities (Malaysia) Sdn Bhd","SP",24637.95]
["Macquarie Capital Securities (Malaysia) Sdn Bhd","SP",35312.1]
["Macquarie Capital Securities (Malaysia) Sdn Bhd","SP",43034.1]
["Macquarie Capital Securities (Malaysia) Sdn Bhd","SP",58693.66]
["Macquarie Capital Securities (Malaysia) Sdn Bhd","SS",56688.41]
["Macquarie Capital Securities (Malaysia) Sdn Bhd","SS",122071.81]
["Maybank Investment Bank Berhad","SP",121764.92]
["Maybank Investment Bank Berhad","SP",78392.12]
["Maybank Investment Bank Berhad","SP",72934.42]
["Maybank Investment Bank Berhad","SP",44101.77]
["Maybank Investment Bank Berhad","SP",82408.13]
["Maybank Investment Bank Berhad","SP",41353.360000000001]
["Maybank Investment Bank Berhad","SP",78005.070000000007]
["Maybank Investment Bank Berhad","SP",38643.07]
["Maybank Investment Bank Berhad","SP",66184.25]
["Maybank Investment Bank Berhad","SP",76482.97]
["Maybank Investment Bank Berhad","SP",39024.1]
["Maybank Investment Bank Berhad","SS",109776.66]
["Maybank Investment Bank Berhad","SS",122045.87]
["Maybank Investment Bank Berhad","SS",39052.44]
["Maybank Investment Bank Berhad","SS",166928.70000000001]
["Maybank Investment Bank Berhad","SS",82453.5]
["MIDF Amanah Investment Bank Berhad","SP",44301.120000000003]
["MIDF Amanah Investment Bank Berhad","SP",148453.79999999999]
["MIDF Amanah Investment Bank Berhad","SP",11160.14]
["MIDF Amanah Investment Bank Berhad","SP",18022.03]
["MIDF Amanah Investment Bank Berhad","SP",116812.39]
["MIDF Amanah Investment Bank Berhad","SS",161734.19]
["MIDF Amanah Investment Bank Berhad","SS",116297.48]
["MIDF Amanah Investment Bank Berhad","SS",87856.639999999999]
["MIDF Amanah Investment Bank Berhad","SS",84544.82]
["MIDF Amanah Investment Bank Berhad","SS",238307.15]
["MIDF Amanah Investment Bank Berhad","SS",132167.37]
["MIDF Amanah Investment Bank Berhad","SS",197733.83]
["Public Investment Bank Berhad","SP",39656.800000000003]
["Public Investment Bank Berhad","SP",40299.53]
["Public Investment Bank Berhad","SP",85054.07]
["Public Investment Bank Berhad","SP",57010.53]
["Public Investment Bank Berhad","SP",36585.53]
["Public Investment Bank Berhad","SP",20645.21]
["Public Investment Bank Berhad","SP",71454.429999999993]
["Public Investment Bank Berhad","SP",100027.38]
["Public Investment Bank Berhad","SP",150804.60999999999]
["Public Investment Bank Berhad","SP",110156.67]
["Public Investment Bank Berhad","SP",42637.83]
["Public Investment Bank Berhad","SS",274446]
["Public Investment Bank Berhad","SS",110040.84]
["Public Investment Bank Berhad","SS",59031.63]
["Public Investment Bank Berhad","SS",78009.350000000006]
["Public Investment Bank Berhad","SS",81696.350000000006]
["RHB Investment Bank Berhad","SP",167991.82]
["RHB Investment Bank Berhad","SP",70482.929999999993]
["RHB Investment Bank Berhad","SP",76984.320000000007]
["RHB Investment Bank Berhad","SP",38642.36]
["RHB Investment Bank Berhad","SP",38416.370000000003]
["RHB Investment Bank Berhad","SP",99363.6]
["RHB Investment Bank Berhad","SP",32724.34]
["RHB Investment Bank Berhad","SP",84015.27]
["RHB Investment Bank Berhad","SP",26619.59]
["RHB Investment Bank Berhad","SP",38793.279999999999]
["RHB Investment Bank Berhad","SP",8913.82]
["RHB Investment Bank Berhad","SP",70104.2]
["RHB Investment Bank Berhad","SP",62743.98]
["RHB Investment Bank Berhad","SP",64227.37]
["RHB Investment Bank Berhad","SP",28067.040000000001]
["RHB Investment Bank Berhad","SP",96113.03]
["RHB Investment Bank Berhad","SP",103453.53]
["RHB Investment Bank Berhad","SP",180042.67]
["RHB Investment Bank Berhad","SP",14502]
["RHB Investment Bank Berhad","SS",60750.67]
["RHB Investment Bank Berhad","SS",114506.28]
["RHB Investment Bank Berhad","SS",119051.01]
["RHB Investment Bank Berhad","SS",40050.339999999997]
["RHB Investment Bank Berhad","SS",280838.3]
["RHB Investment Bank Berhad","SS",393803.42]
["RHB Investment Bank Berhad","SS",70384.78]
["RHB Investment Bank Berhad","SS",168426.6]
["RHB Investment Bank Berhad","SS",46849.29]
["RHB Investment Bank Berhad","SS",241704.35]
["RHB Investment Bank Berhad","SS",44655.24]
["RHB Investment Bank Berhad","SS",30918.95]
["RHB Investment Bank Berhad","SS",131473.79]
["RHB Investment Bank Berhad","SS",79802.490000000005]
["TA Securities Holdings Berhad","SP",67735.42]
["TA Securities Holdings Berhad","SP",79995.839999999997]
["TA Securities Holdings Berhad","SP",66074.45]
["TA Securities Holdings Berhad","SP",28452.83]
["TA Securities Holdings Berhad","SP",86660.39]
["TA Securities Holdings Berhad","SP",246757.35]
["TA Securities Holdings Berhad","SP",254401.54]
["TA Securities Holdings Berhad","SP",38171.39]
["TA Securities Holdings Berhad","SP",41595.42]
["TA Securities Holdings Berhad","SP",42221.51]
["TA Securities Holdings Berhad","SP",105343.1]
["TA Securities Holdings Berhad","SP",34447.769999999997]
["TA Securities Holdings Berhad","SP",105995.46]
["TA Securities Holdings Berhad","SP",79285.02]
["TA Securities Holdings Berhad","SP",132394.91]
["TA Securities Holdings Berhad","SS",43319.27]
["TA Securities Holdings Berhad","SS",86084.24]
["TA Securities Holdings Berhad","SS",36274.57]
["TA Securities Holdings Berhad","SS",83230.58]
["TA Securities Holdings Berhad","SS",148660.26999999999]
["TA Securities Holdings Berhad","SS",116655]
["TA Securities Holdings Berhad","SS",74602.59]
["TA Securities Holdings Berhad","SS",222579.59]
["TA Securities Holdings Berhad","SS",80330.97]
["TA Securities Holdings Berhad","SS",167199.17000000001]
["TA Securities Holdings Berhad","SS",30685.75]

{"sheet":"InPricing","index":26,"n_rows":17,"n_cols":5,"rows_kept":17,"cut":false,"hidden":true,"merged":[]}
[]
["qValDate","NAV","BuyPrice","SellPrice","ValPrice"]
["2011-05-31",1308538.44,0.995,0.995,0.99501634000000005]
["2011-06-30",1284497.43,0.99980000000000002,0.99980000000000002,0.99980714000000004]
["2011-07-31",1280452.28,1.0033000000000001,1.0033000000000001,1.0033095400000001]
["2011-08-31",1172482.0900000001,0.91859999999999997,0.91859999999999997,0.91863185999999997]
["2011-09-30",1096914.04,0.85940000000000005,0.85940000000000005,0.85935130000000004]
["2011-10-31",1176540.95,0.91790000000000005,0.91790000000000005,0.91791716999999995]
["2011-11-30",1144090.6499999999,0.91900000000000004,0.91900000000000004,0.91903858000000005]
["2011-12-31",1211136.46,0.97119999999999995,0.97119999999999995,0.97124076999999998]
["2012-01-31",1216455.26,0.97699999999999998,0.97699999999999998,0.97703039999999997]
["2012-02-29",1219432.1399999999,0.99339999999999995,0.99339999999999995,0.99335890000000004]
["2012-03-31",726032.43,0.99719999999999998,0.99719999999999998,0.99723850999999997]
["2012-04-30",1125325.6299999999,0.99890000000000001,0.99890000000000001,0.99894004999999997]
["2012-05-31",1138795.27,1.0108999999999999,1.0108999999999999,1.01089691]
["2012-06-30",1137873.71,1.0265,1.0265,1.0265001199999999]
["2012-07-17",1162844.82,1.0569999999999999,1.0569999999999999,1.05700975]

{"sheet":"InIndex","index":27,"n_rows":17,"n_cols":3,"rows_kept":17,"cut":false,"hidden":true,"merged":[]}
[]
["ValueDate","qIndexBenchMark","Indices"]
["2011-05-31","KLCI",1558.29]
["2011-06-30","KLCI",1579.07]
["2011-07-31","KLCI",1548.81]
["2011-08-31","KLCI",1447.27]
["2011-09-30","KLCI",1387.13]
["2011-10-31","KLCI",1491.89]
["2011-11-30","KLCI",1472.1]
["2011-12-31","KLCI",1530.73]
["2012-01-31","KLCI",1521.29]
["2012-02-29","KLCI",1569.65]
["2012-03-31","KLCI",1596.33]
["2012-04-30","KLCI",1570.61]
["2012-05-31","KLCI",1580.67]
["2012-06-30","KLCI",1599.15]
["2012-07-17","KLCI",1639.15]

{"sheet":"InTWRR","index":28,"n_rows":3,"n_cols":6,"rows_kept":3,"cut":false,"hidden":true,"merged":[]}
[]
["qFundCode","ValueDate","LastValueDate","NAV","LVNav","TWRR"]
["HLGTSSF",40724,40723,1284497.43,1277148.17,5.7338295946083306E-3]

{"sheet":"InFund","index":29,"n_rows":13,"n_cols":8,"rows_kept":13,"cut":false,"hidden":true,"merged":[]}
[]
["qFundCode","FundName","FinanceYrStart","FinanceYrEnd","qIndexBenchMark","FundCurrency","FundPrefix","CPName"]
["BICMF","BIMB I Cash Management Fund","2015-07-01","2016-06-30","FBMKLCI","MYR","BICMF","AMANAHRAYA TRUSTEES BERHAD"]
["BICMF3","BIMB I Cash Management Fund 3","2015-12-14","2016-12-31","FBMKLCI","MYR","BICMF3","AMANAHRAYA TRUSTEES BERHAD"]
["BIMMF","BIMB Invest Money Market Fund","2015-07-01","2016-06-30","FBMKLCI","MYR","BIMMF","AMANAHRAYA TRUSTEES BERHAD"]
["GD1","Arabesque i Global Dividend Fund 1","2015-11-05","2016-03-31","FBMKLCI","USD","GD1","DEUTSCHE TRUSTEE MALAYSIA BERHAD"]
["GD1RM","BIMB i Global Dividend Fund 1 (MYR)","2015-10-01","2015-12-31","FBMKLCI","MYR","GD1RM","MANAGEMENT COMPANY"]
["IB","Fakhim","2015-09-01","2015-08-28","FBMKLCI","MYR","IB","ABB TRUSTEE BERHAD"]
["ID","Falah","2015-09-01","2015-08-28","FBMKLCI","MYR","ID","ABB TRUSTEE BERHAD"]
["IF","BIMB I Flexi Fund","2015-04-01","2016-03-31","FBMKLCI","MYR","IF","AMANAHRAYA TRUSTEES BERHAD"]
["IP","BIMB I Dividend Fund","2015-11-01","2016-10-31","FBMKLCI","MYR","IP","CIMB ISLAMIC TRUSTEE BERHAD"]
["IS","Munsif","2015-09-01","2015-08-28","FBMKLCI","MYR","IS","ABB TRUSTEE BERHAD"]
["TP","BIMB I Growth","2015-07-01","2016-06-30","FBMKLCI","MYR","TP","MAYBANK TRUSTEES BERHAD"]